fUST/lending_fUST_20251218
["ID","MTS","AMOUNT","RATE_DAILY","PERIOD"]
[399008266,1766067039907,-300.0,0.00021433,10]
[399008267,1766067039917,-300.0,0.00021433,10]
[399008268,1766067039926,-300.0,0.00021433,10]
[399008269,1766067039936,-300.0,0.00021433,10]
[399008270,1766067039947,-300.0,0.00021433,10]
[399008271,1766067039957,-600.0,0.00021861,10]
[399008272,1766067039967,-177.0,0.00022272,2]
[399008273,1766067039977,-5351.14450055,0.00022312,2]
[399008274,1766067040129,-3e-08,0.00022312,2]
[399008301,1766067043251,-1155.4,0.00022312,2]
[399008302,1766067043311,-24198.39424672,0.00022312,2]
[399008303,1766067043321,-420.0,0.00023303,2]
[399008304,1766067043331,-720.0,0.00024047,10]
[399008305,1766067043340,-300.0,0.000249,2]
[399008306,1766067043350,-672.04239391,0.000249,2]
[399008307,1766067043360,-986.74,0.00025,2]
[399008308,1766067043369,-301.867,0.00025223,9]
[399008309,1766067043379,-587.0,0.00025337,2]
[399008310,1766067043388,-204.1405046,0.00025538,2]
[399008311,1766067043398,-864.0,0.00026451,30]
[399008312,1766067043408,-250.0,0.00026786,2]
[399008313,1766067043417,-2000.0,0.00027029,15]
[399008314,1766067043427,-191.0,0.00027106,120]
[399008315,1766067043436,-225.96649473,0.00027291,2]
[399008316,1766067043446,-777.772,0.00027575,2]
[399008317,1766067043455,-367.03513236,0.00027575,2]
[399008318,1766067043465,-1363.52683818,0.00027932,15]
[399008319,1766067043477,-636.47316182,0.00027932,15]
[399008320,1766067043486,-191.0,0.00028461,120]
[399008321,1766067043496,-2000.0,0.00028835,15]
[399008325,1766067043625,-2000.0,0.00029007,15]
[399008326,1766067043635,-1000.0,0.00029097,30]
[399008327,1766067043644,-2000.0,0.00029299,7]
[399008328,1766067043653,-2000.0,0.00029667,2]
[399008329,1766067043662,-2000.0,0.00029738,15]
[399008330,1766067043671,-468.57583818,0.00029755,2]
[399008331,1766067043682,-573.09082849,0.00029755,2]
[399008332,1766067043691,-191.0,0.00029884,120]
[399008333,1766067043700,-2000.0,0.00029887,15]
[399008334,1766067043709,-284.56,0.0003,10]
[399008335,1766067043718,-201.2714379,0.0003,2]
[399008336,1766067043727,-179.01006002,0.00030009,2]
[399008337,1766067043736,-196.54588897,0.00030009,2]
[399008338,1766067043745,-500.0,0.00030009,2]
[399008339,1766067043754,-500.0,0.00030009,2]
[399008340,1766067043763,-500.0,0.00030009,2]
[399008341,1766067043773,-500.0,0.00030009,2]
[399008342,1766067043782,-500.0,0.00030009,2]
[399008343,1766067043791,-500.0,0.00030009,2]
[399008344,1766067043800,-500.0,0.00030009,2]
[399008345,1766067043810,-500.0,0.00030009,2]
[399008346,1766067043819,-500.0,0.00030009,2]
[399008347,1766067043828,-500.0,0.00030009,2]
[399008348,1766067043838,-258.72981238,0.00030009,2]
[399008349,1766067043847,-500.0,0.00030009,2]
[399008350,1766067043855,-500.0,0.00030009,2]
[399008351,1766067043864,-500.0,0.00030009,2]
[399008352,1766067043874,-500.0,0.00030009,2]
[399008353,1766067043884,-431.11086867,0.00030009,2]
[399008354,1766067043893,-920.33961827,0.00030009,15]
[399008355,1766067043904,-1079.66038173,0.00030009,15]
[399008356,1766067043913,-33989.20866549,0.0003001,120]
[399008357,1766067043924,-920.38129747,0.0003001,120]
[399008358,1766067043935,-620.51122382,0.0003001,120]
[399008372,1766067046046,-2388.63997214,0.0003001,120]
[399008373,1766067046057,-1098.37612677,0.0003001,120]
[399008374,1766067046068,-585.22942909,0.0003001,120]
[399008375,1766067046188,-1470.12204079,0.0003001,120]
[399008376,1766067168197,333.33333333,0.0002,2]
[399008377,1766067496414,-5000.0,0.00023258,2]
[399008378,1766067841840,999.999,0.0002,120]
[399008379,1766067953899,-5000.0,0.00023025,2]
[399008382,1766067979620,168.332379,0.00013699,2]
[399008384,1766067987133,150.0,8.365e-05,2]
[399008385,1766067987541,150.0,8.763e-05,2]
[399008386,1766067987960,150.0,9.162e-05,2]
[399008387,1766067988369,150.0,9.56e-05,2]
[399008388,1766067988777,185.56,9.958e-05,2]
[399008389,1766067989201,222.67,0.00010357,2]
[399008390,1766067989597,259.79,0.00010755,2]
[399008391,1766067990016,296.9,0.00011153,2]
[399008392,1766067990448,334.01,0.00011551,2]
[399008393,1766067990862,371.12,0.0001195,2]
[399008395,1766068058648,150.0,8.339e-05,2]
[399008396,1766068059061,150.0,8.736e-05,2]
[399008397,1766068059482,150.0,9.133e-05,2]
[399008398,1766068059891,150.0,9.53e-05,2]
[399008399,1766068115773,227.88270681,0.0001536,120]
[399008400,1766068116128,300.0,2.5e-05,30]
[399008403,1766068122508,9472.12729319,0.00015,7]
[399008404,1766068122535,10000.01,0.00015,7]
[399008405,1766068122560,10000.01,0.00015,7]
[399008406,1766068122585,10000.01,0.00015,7]
[399008407,1766068122610,10000.01,0.00015,7]
[399008408,1766068122633,3244.32933908,0.00015,7]
[399008409,1766068133542,160.0,0.00018,2]
[399008410,1766068147759,160.0,0.00018,2]
[399008414,1766068189117,240.57,9.842e-05,2]
[399008415,1766068189547,481.14,0.00010311,2]
[399008416,1766068189954,721.7,0.00010779,2]
[399008417,1766068190363,962.27,0.00011248,2]
[399008418,1766068190932,1202.84,0.00011717,2]
[399008419,1766068191343,1443.41,0.00012185,2]
[399008420,1766068191763,1383.75066092,0.00012654,2]
[399008421,1766068191790,300.22933908,0.00012654,2]
[399008422,1766068192225,1924.54,0.00013123,2]
[399008423,1766068192643,2165.11,0.00013591,2]
[399008424,1766068193072,2405.68,0.0001406,2]
[399008491,1766068243307,-1310.17102086,0.000198,2]
[399008492,1766068243361,-73.21996974,0.000198,2]
[399008499,1766068243822,2000.0,0.00018,2]
[399008523,1766068261260,-3616.6090094,0.000198,2]
[399008524,1766068261292,-718.0,0.000198,2]
[399008525,1766068261323,-284.03926364,0.000199,2]
[399008526,1766068261360,-188.0,0.0002,120]
[399008527,1766068261977,-8483.56199277,0.0002,2]
[399008528,1766068262109,-3229.67714107,0.0002,2]
[399008529,1766068262139,-750.839588,0.0002,120]
[399008530,1766068262171,-249.0,0.0002,120]
[399008531,1766068262202,-248.1914565,0.0002022,59]
[399008532,1766068262282,-1044.59362886,0.0002022,59]
[399008533,1766068262321,-300.0,0.00020399,2]
[399008534,1766068262363,-300.0,0.00020399,2]
[399008535,1766068262400,-300.0,0.00020399,2]
[399008536,1766068262435,-300.0,0.00020399,2]
[399008537,1766068262473,-300.0,0.00020399,2]
[399008538,1766068262510,-300.0,0.00020399,2]
[399008539,1766068262546,-300.0,0.00020399,2]
[399008540,1766068262581,-300.0,0.00020399,2]
[399008541,1766068262624,-300.0,0.00020399,2]
[399008542,1766068262659,-300.0,0.00020399,2]
[399008543,1766068262693,-300.0,0.00020399,2]
[399008544,1766068262727,-300.0,0.00020399,2]
[399008545,1766068262760,-300.0,0.00020399,2]
[399008546,1766068262796,-300.0,0.00020399,2]
[399008547,1766068262830,-300.0,0.00020399,2]
[399008548,1766068263115,-2002.27605325,0.000215,2]
[399008549,1766068263150,-2597.08249345,0.00022,2]
[399008550,1766068263184,-220.0,0.00022,2]
[399008551,1766068263218,-167.70935383,0.00022309,5]
[399008552,1766068263364,-300.0,0.00019999,2]
[399008553,1766068263396,-25.87419894,0.00022309,5]
[399008554,1766068263429,-462.27668626,0.00023158,2]
[399008555,1766068263459,-207.0662759,0.00023158,2]
[399008556,1766068263494,-3000.0,0.000233,2]
[399008557,1766068263529,-600.0,0.00023722,10]
[399008558,1766068263562,-151.67056887,0.0002373,2]
[399008559,1766068263667,-1540.4380568,0.00024993,2]
[399008560,1766068263699,-159.0,0.00025,30]
[399008561,1766068263733,-1000.0,0.00025205,14]
[399008562,1766068263768,-720.0,0.00026094,10]
[399008563,1766068263799,-169.0,0.0002673,120]
[399008564,1766068263935,-999.0,0.00027377,2]
[399008565,1766068263968,-169.0,0.00028067,120]
[399008566,1766068264096,-864.0,0.00028704,30]
[399008567,1766068264127,-169.0,0.0002947,120]
[399008568,1766068264155,-160.0,0.000295,120]
[399008569,1766068264185,-160.0,0.000295,30]
[399008570,1766068264215,-526.43872567,0.00029771,2]
[399008571,1766068264247,-500.0,0.00029771,2]
[399008572,1766068264280,-500.0,0.00029771,2]
[399008573,1766068264311,-500.0,0.00029771,2]
[399008574,1766068264348,-500.0,0.00029771,2]
[399008575,1766068264383,-341.94672814,0.00029771,2]
[399008576,1766068264414,-500.0,0.00029771,2]
[399008577,1766068264447,-57.23909238,0.00029771,2]
[399008578,1766068264549,-442.76090762,0.00029771,2]
[399008579,1766068264582,-500.0,0.00029771,2]
[399008580,1766068264620,-500.0,0.00029771,2]
[399008581,1766068264652,-500.0,0.00029771,2]
[399008582,1766068264684,-500.0,0.00029771,2]
[399008583,1766068264717,-500.0,0.00029771,2]
[399008584,1766068264752,-500.0,0.00029771,2]
[399008585,1766068264785,-500.0,0.00029771,2]
[399008586,1766068264818,-500.0,0.00029771,2]
[399008587,1766068264856,-500.0,0.00029771,2]
[399008588,1766068266394,-500.0,0.00029771,2]
[399008589,1766068266410,-500.0,0.00029771,2]
[399008590,1766068266428,-500.0,0.00029771,2]
[399008591,1766068266446,-500.0,0.00029771,2]
[399008592,1766068266467,-500.0,0.00029771,2]
[399008593,1766068266483,-114.48818476,0.00029771,2]
[399008594,1766068266540,134.58387568,8.624e-05,2]
[399008595,1766068266575,15.41612432,8.624e-05,2]
[399008596,1766068266617,204.42,9.034e-05,2]
[399008597,1766068266898,306.62,9.445e-05,2]
[399008598,1766068267178,-385.51181524,0.00029771,2]
[399008599,1766068267212,-500.0,0.00029771,2]
[399008600,1766068267243,-500.0,0.00029771,2]
[399008601,1766068267274,-500.0,0.00029771,2]
[399008602,1766068267305,-500.0,0.00029771,2]
[399008603,1766068267337,-472.70167348,0.00029771,2]
[399008604,1766068267372,-500.0,0.00029771,2]
[399008605,1766068267405,-500.0,0.00029771,2]
[399008606,1766068267439,-500.0,0.00029771,2]
[399008607,1766068267473,-500.0,0.00029771,2]
[399008608,1766068267667,-500.0,0.00029771,2]
[399008609,1766068267698,-500.0,0.00029771,2]
[399008610,1766068267729,-500.0,0.00029771,2]
[399008611,1766068267760,-254.38088685,0.00029771,2]
[399008612,1766068267792,-500.0,0.00029771,2]
[399008613,1766068267824,-500.0,0.00029771,2]
[399008614,1766068267859,-430.47977678,0.00029771,2]
[399008615,1766068267890,-500.0,0.00029771,2]
[399008616,1766068267924,-374.38629231,0.00029771,2]
[399008617,1766068267956,-322.42618754,0.00029771,2]
[399008618,1766068267988,-194.99704637,0.00029772,2]
[399008619,1766068268061,408.83,9.856e-05,2]
[399008620,1766068268168,-846.6696203,0.00029772,2]
[399008621,1766068268202,-800.0,0.0002987,2]
[399008622,1766068268236,-800.0,0.00029945,2]
[399008623,1766068268269,-250.0,0.00029991,2]
[399008624,1766068268302,-250.0,0.00029991,2]
[399008625,1766068268334,-250.0,0.00029991,2]
[399008626,1766068268369,-241.494,0.0003,24]
[399008627,1766068268401,-1002.80769105,0.0003,14]
[399008628,1766068268492,-2303.13414914,0.0003,2]
[399008629,1766068268625,-4606.26829828,0.0003,2]
[399008630,1766068268669,511.04,0.00010266,2]
[399008631,1766068269049,613.25,0.00010677,2]
[399008632,1766068269273,-787.47340344,0.0003,2]
[399008633,1766068269282,-2288.63810767,0.0003001,120]
[399008634,1766068269304,-5393.74170172,0.0003001,120]
[399008635,1766068269340,715.46,0.00011088,2]
[399008636,1766068269635,535.2923467,0.00011498,2]
[399008637,1766068269668,282.3776533,0.00011498,2]
[399008638,1766068270239,919.87,0.00011909,2]
[399008639,1766068270791,522.71622238,0.0001232,2]
[399008640,1766068270822,499.36377762,0.0001232,2]
[399008641,1766068279665,-5000.0,0.0002277,2]
[399008642,1766068279712,-0.01,0.00023,2]
[399008643,1766068279910,-327.56985614,0.00023,2]
[399008644,1766068279941,-588.03709461,0.00023622,2]
[399008645,1766068279971,-327.57985614,0.00024969,2]
[399008646,1766068280000,-327.57985614,0.00026938,2]
[399008647,1766068280031,-327.57985614,0.00028907,2]
[399008648,1766068280062,-588.03709461,0.00029519,2]
[399008649,1766068280212,-5027.24277244,0.0003001,120]
[399008650,1766068280237,-10000.01,0.0003001,120]
[399008651,1766068282228,-369.11533594,0.00028714,2]
[399008652,1766068282271,-9261.77932812,0.0003001,120]
[399008653,1766068282333,-10000.01,0.0003001,120]
[399008654,1766068282474,-3210.33897867,0.0003001,120]
[399008655,1766068282503,-3579.33204266,0.0003001,120]
[399008656,1766068344978,150.0,8.866e-05,2]
[399008657,1766068345424,150.0,9.288e-05,2]
[399008658,1766068345820,152.06,9.71e-05,2]
[399008659,1766068346258,202.75,0.00010133,2]
[399008660,1766068346707,253.44,0.00010555,2]
[399008661,1766068347159,304.12,0.00010977,2]
[399008662,1766068347580,354.81,0.00011399,2]
[399008663,1766068348126,405.5,0.00011821,2]
[399008664,1766068348568,456.18,0.00012244,2]
[399008665,1766068348986,506.87,0.00012666,2]
[399008666,1766068418497,150.0,8.625e-05,2]
[399008667,1766068418911,150.0,9.035e-05,2]
[399008668,1766068419353,150.0,9.446e-05,2]
[399008669,1766068419817,150.0,9.857e-05,2]
[399008670,1766068420266,150.0,0.00010267,2]
[399008671,1766068420678,150.0,0.00010678,2]
[399008675,1766068486237,150.0,8.529e-05,2]
[399008676,1766068486645,150.0,8.935e-05,2]
[399008677,1766068487048,150.0,9.341e-05,2]
[399008678,1766068487586,150.0,9.748e-05,2]
[399008679,1766068487883,150.0,0.00010154,2]
[399008681,1766068497734,150.0,0.0001056,2]
[399008682,1766068498152,150.0,0.00010966,2]
[399008683,1766068519805,949.0,0.00018,2]
[399008684,1766068562865,150.0,8.537e-05,2]
[399008685,1766068563305,150.0,8.943e-05,2]
[399008686,1766068563726,150.0,9.35e-05,2]
[399008687,1766068564157,150.0,9.756e-05,2]
[399008688,1766068564575,150.0,0.00010163,2]
[399008689,1766068565007,150.0,0.00010569,2]
[399008690,1766068565424,160.49,0.00010976,2]
[399008691,1766068565877,183.41,0.00011382,2]
[399008692,1766068566298,206.34,0.00011789,2]
[399008693,1766068566722,229.27,0.00012195,2]
[399008694,1766068679868,356.2,7.992e-05,120]
[399008695,1766068680378,356.2,7.992e-05,120]
[399008696,1766068695432,150.0,8.529e-05,2]
[399008697,1766068695855,150.0,8.935e-05,2]
[399008698,1766068696268,150.0,9.342e-05,2]
[399008699,1766068696675,150.0,9.748e-05,2]
[399008700,1766068697080,150.0,0.00010154,2]
[399008701,1766068762054,150.0,8.67e-05,2]
[399008702,1766068762449,150.0,9.083e-05,2]
[399008703,1766068762872,150.0,9.496e-05,2]
[399008704,1766068763354,150.0,9.908e-05,2]
[399008705,1766068763753,150.0,0.00010321,2]
[399008706,1766068764155,150.0,0.00010734,2]
[399008707,1766068764576,150.0,0.00011147,2]
[399008708,1766068764982,150.0,0.0001156,2]
[399008709,1766068765410,163.84,0.00011973,2]
[399008710,1766068785015,159.028941,0.0001361,2]
[399008712,1766068797566,-274.62483761,0.00019398,120]
[399008713,1766068801379,-25.37516239,0.00019398,120]
[399008714,1766068801401,-275.45132241,0.00019398,120]
[399008715,1766068802913,-24.54867759,0.00019398,120]
[399008716,1766068802937,-156.2238354,0.00019398,120]
[399008717,1766068804373,-143.7761646,0.00019398,120]
[399008718,1766068804396,-116.82301323,0.00019398,120]
[399008719,1766068807071,-154.84181069,0.00019398,120]
[399008720,1766068848362,154.93833157,0.00018,2]
[399008721,1766068907303,160.0,0.00018,2]
[399008722,1766068963779,160.0,0.00018,2]
[399008723,1766068968298,173.95201277,0.00018,2]
[399008724,1766068995865,180.0,0.00018,2]
[399008725,1766069045855,300.0,0.00017542,120]
[399008726,1766069047570,300.0,0.00017542,120]
[399008727,1766069049287,300.0,0.00017542,120]
[399008728,1766069051063,178.03,0.00017542,120]
[399008729,1766069114750,300.0,0.00017511,120]
[399008730,1766069116466,300.0,0.00017511,120]
[399008731,1766069118176,300.0,0.00017511,120]
[399008732,1766069149919,150.0,8.48e-05,2]
[399008733,1766069150339,150.0,8.884e-05,2]
[399008734,1766069150750,150.0,9.288e-05,2]
[399008735,1766069215243,150.0,8.5e-05,2]
[399008736,1766069216162,150.0,8.905e-05,2]
[399008737,1766069216585,150.0,9.309e-05,2]
[399008738,1766069281061,150.0,8.485e-05,2]
[399008739,1766069281480,150.0,8.889e-05,2]
[399008740,1766069281947,150.0,9.293e-05,2]
[399008741,1766069328991,151.11741009,0.00018,2]
[399008742,1766069346517,150.0,8.472e-05,2]
[399008743,1766069346900,150.0,8.875e-05,2]
[399008744,1766069347337,150.0,9.279e-05,2]
[399008745,1766069347997,150.0,9.682e-05,2]
[399008746,1766069412058,150.0,8.504e-05,2]
[399008747,1766069412478,150.0,8.909e-05,2]
[399008748,1766069412923,150.0,9.314e-05,2]
[399008749,1766069413382,150.0,9.719e-05,2]
[399008759,1766069432338,-1200.0,0.00019521,2]
[399008760,1766069432348,-220.2,0.00019522,2]
[399008839,1766069438155,-4779.8,0.00019522,2]
[399008841,1766069438165,-713.0,0.00019522,2]
[399008843,1766069438175,-150.0,0.00019751,2]
[399008845,1766069438184,-300.0,0.00019911,2]
[399008847,1766069438194,-300.0,0.00019911,2]
[399008849,1766069438203,-300.0,0.00019911,2]
[399008850,1766069438218,-300.0,0.00019911,2]
[399008853,1766069438228,-300.0,0.00019911,2]
[399008854,1766069438239,-300.0,0.00019911,2]
[399008856,1766069438248,-300.0,0.00019911,2]
[399008857,1766069438257,-300.0,0.00019911,2]
[399008858,1766069438267,-300.0,0.00019911,2]
[399008859,1766069438276,-300.0,0.00019911,2]
[399008860,1766069438285,-300.0,0.00019911,2]
[399008861,1766069438295,-300.0,0.00019911,2]
[399008862,1766069438305,-300.0,0.00019911,2]
[399008863,1766069438314,-300.0,0.00019911,2]
[399008864,1766069438324,-300.0,0.00019911,2]
[399008865,1766069438333,-600.0,0.00020308,2]
[399008866,1766069438343,-291.0,0.00021256,2]
[399008867,1766069438352,-2523.37652225,0.00021257,2]
[399008868,1766069438363,-294.33506019,0.00021263,3]
[399008869,1766069438373,-234.19187587,0.00021751,2]
[399008870,1766069438382,-720.0,0.00022339,10]
[399008871,1766069438392,-451.54456896,0.0002275,2]
[399008872,1766069438402,-11945.3175867,0.00023934,2]
[399008873,1766069438411,-190.0869111,0.00024175,2]
[399008874,1766069438422,-154.93833157,0.0002424,56]
[399008875,1766069438431,-451.54456896,0.00024309,2]
[399008876,1766069438441,-864.0,0.00024573,10]
[399008877,1766069438450,-179.978988,0.00024707,2]
[399008878,1766069438460,-179.978988,0.00024707,41]
[399008879,1766069438469,-179.978988,0.00024707,80]
[399008880,1766069438479,-179.978988,0.00024707,119]
[399008881,1766069438489,-1396.7262779,0.00024813,2]
[399008882,1766069438498,-224.021,0.00025224,9]
[399008883,1766069438508,-451.54456896,0.00025868,2]
[399008884,1766069438518,-332.79994253,0.00026667,2]
[399008885,1766069438527,-1000.0,0.0002703,30]
[399008886,1766069438536,-74.96717696,0.00027103,30]
[399008887,1766069438672,-158.93670135,0.00027103,30]
[399008888,1766069438682,-159.028941,0.00027219,2]
[399008889,1766069438692,-451.54456896,0.00027427,2]
[399008890,1766069438702,-123.58539195,0.00027567,2]
[399008891,1766069438714,-495.95761644,0.00027567,2]
[399008932,1766069440319,-1861.18749674,0.00027567,2]
[399008934,1766069440329,-1176.16290054,0.00028181,3]
[399008936,1766069440340,-299.71737131,0.00028751,2]
[399008938,1766069440349,-541.13065658,0.00028751,2]
[399008939,1766069440359,-500.0,0.00028751,2]
[399008941,1766069440368,-254.81584049,0.00028751,2]
[399008943,1766069440377,-385.8557415,0.00028751,2]
[399008945,1766069440387,-499.23956093,0.00028751,2]
[399008947,1766069440396,-10007.9725577,0.00028752,2]
[399008949,1766069440405,-451.99611353,0.00028986,2]
[399008951,1766069440414,-172.55508752,0.00029109,2]
[399008953,1766069440423,-344.416113,0.00029387,2]
[399008955,1766069440432,-800.0,0.00029527,2]
[399008957,1766069440441,-1000.0,0.00029733,30]
[399008959,1766069440451,-244.0,0.00029733,30]
[399008961,1766069440460,-223.37928675,0.00029771,2]
[399008963,1766069440468,-893.51714702,0.00029771,2]
[399008965,1766069440478,-2010.41358079,0.00029771,2]
[399008967,1766069440487,-160.0,0.000298,30]
[399008969,1766069440497,-1041.66666667,0.0002983,2]
[399008972,1766069440507,-208.84,0.00030037,120]
[399008975,1766069440516,-208.84,0.00030037,120]
[399008977,1766069440526,-208.84,0.00030037,120]
[399008979,1766069440535,-208.84,0.00030037,120]
[399008980,1766069440545,-208.84,0.00030037,120]
[399008982,1766069440555,-208.84,0.00030037,120]
[399008984,1766069440564,-208.84,0.00030037,120]
[399008986,1766069440573,-200.4,0.00030037,120]
[399008988,1766069440583,-200.426515,0.00030137,120]
[399008989,1766069440592,-160.0,0.000302,120]
[399008991,1766069440603,-667.0,0.00030394,120]
[399008993,1766069440612,-568.0,0.00030394,120]
[399008994,1766069440622,-169.0,0.00030943,120]
[399008996,1766069440632,-160.0,0.00031,120]
[399008998,1766069440641,-667.0,0.00031914,120]
[399009000,1766069440651,-568.0,0.00031914,120]
[399009001,1766069440660,-1451.98738128,0.00032,120]
[399009002,1766069440669,-1000.0,0.00032707,30]
[399009003,1766069440679,-492.0,0.00032707,30]
[399009004,1766069440690,-500.0,0.00032876,2]
[399009005,1766069440700,-500.0,0.00032876,2]
[399009006,1766069440710,-237.13,0.0003299,10]
[399009007,1766069440722,-197.61,0.0003299,10]
[399009008,1766069440733,-500.0,0.00032999,2]
[399009009,1766069440743,-500.0,0.00032999,2]
[399009010,1766069440753,-500.0,0.00032999,2]
[399009011,1766069440764,-27054.05861131,0.00033,2]
[399009012,1766069440773,-20741.68485089,0.00033,30]
[399009013,1766069440782,-1041.66666667,0.00033,30]
[399009014,1766069440791,-160.0,0.00033,31]
[399009015,1766069440802,-151.0,0.00033,31]
[399009016,1766069440813,-151.0,0.00033,31]
[399009017,1766069440822,-151.0,0.00033,31]
[399009018,1766069440831,-151.0,0.00033,31]
[399009019,1766069440841,-151.0276,0.00033,31]
[399009020,1766069440851,-151.0,0.00033,31]
[399009021,1766069440861,-151.0,0.00033,31]
[399009022,1766069440871,-151.0,0.00033,31]
[399009023,1766069440882,-151.0,0.00033,31]
[399009024,1766069440893,-151.0,0.00033,31]
[399009025,1766069440903,-180.692935,0.00033,31]
[399009026,1766069440912,-151.0,0.00033,31]
[399009027,1766069440922,-151.0,0.00033,31]
[399009028,1766069440932,-151.0,0.00033,31]
[399009029,1766069440941,-169.255135,0.00033,31]
[399009030,1766069440951,-169.255135,0.00033,31]
[399009031,1766069440962,-169.255135,0.00033,31]
[399009032,1766069440973,-169.255135,0.00033,31]
[399009033,1766069440982,-762.0,0.00033,31]
[399009034,1766069440992,-762.0,0.00033,31]
[399009035,1766069441002,-762.0,0.00033,31]
[399009036,1766069441011,-670.38877878,0.00033,31]
[399009043,1766069443330,-164.68,0.0003299,10]
[399009044,1766069443340,-91.61122122,0.00033,31]
[399009045,1766069443349,-151.0,0.00033,31]
[399009046,1766069443358,-133.8117443,0.00033,31]
[399009047,1766069443391,-17.1882557,0.00033,31]
[399009048,1766069443400,-151.0,0.00033,31]
[399009049,1766069443410,-151.0,0.00033,31]
[399009050,1766069443419,-151.0,0.00033,31]
[399009051,1766069443428,-151.0,0.00033,31]
[399009052,1766069443437,-151.0,0.00033,31]
[399009053,1766069443447,-120.5349243,0.00033,31]
[399009054,1766069443465,-30.4650757,0.00033,31]
[399009055,1766069443474,-151.0,0.00033,31]
[399009056,1766069443484,-118.5349243,0.00033,31]
[399009096,1766069446452,-32.4650757,0.00033,31]
[399009098,1766069446461,-151.0,0.00033,31]
[399009100,1766069446471,-151.0,0.00033,31]
[399009102,1766069446480,-151.0,0.00033,31]
[399009104,1766069446490,-151.0,0.00033,31]
[399009106,1766069446500,-151.0,0.00033,31]
[399009108,1766069446509,-151.0,0.00033,31]
[399009110,1766069446518,-151.0,0.00033,31]
[399009112,1766069446527,-151.0,0.00033,31]
[399009114,1766069446536,-151.0,0.00033,31]
[399009116,1766069446545,-151.0,0.00033,31]
[399009118,1766069446554,-254.065952,0.00033,31]
[399009120,1766069446563,-151.0,0.00033,31]
[399009122,1766069446572,-151.0,0.00033,31]
[399009124,1766069446581,-151.0,0.00033,31]
[399009126,1766069446590,-151.0,0.00033,31]
[399009128,1766069446599,-151.0,0.00033,31]
[399009129,1766069446608,-158.887404,0.00033,31]
[399009132,1766069446624,-151.0,0.00033,31]
[399009134,1766069446645,-151.0,0.00033,31]
[399009135,1766069446655,-165.440593,0.00033,31]
[399009137,1766069446664,-165.440593,0.00033,31]
[399009139,1766069446673,-165.440593,0.00033,31]
[399009141,1766069446682,-165.440593,0.00033,31]
[399009143,1766069446691,-165.440593,0.00033,31]
[399009145,1766069446700,-165.440593,0.00033,31]
[399009147,1766069446709,-165.440593,0.00033,31]
[399009149,1766069446718,-165.440593,0.00033,31]
[399009151,1766069446727,-151.0,0.00033,31]
[399009153,1766069446737,-151.0,0.00033,31]
[399009155,1766069446747,-151.0,0.00033,31]
[399009157,1766069446757,-151.0,0.00033,31]
[399009159,1766069446766,-641.044478,0.00033,31]
[399009161,1766069446775,-151.0,0.00033,31]